bitfinex/quotes_ETHUSD_20240824
["timestamp","ask_amount","ask_price","bid_price","bid_amount"]
[1724458775481,3.61797,2764.0,2763.4,2.3487]
[1724458775681,3.61797,2764.0,2763.5,3.61859]
[1724458776118,7.98908033,2764.2,2763.5,7.2371]
[1724458776283,4.37129033,2764.2,2763.6,3.61846]
[1724458776478,0.75356033,2764.2,2763.7,3.61826]
[1724458776703,0.75356033,2764.2,2763.7,7.23652]
[1724458776884,0.75356033,2764.2,2763.8,2.4433]
[1724458777715,4.37111033,2764.3,2763.8,2.4433]
[1724458778161,5.663079,2764.3,2763.8,2.4433]
[1724458778330,5.663079,2764.3,2763.7,3.61824]
[1724458778655,3.61769,2764.2,2763.7,3.61824]
[1724458778864,5.90779,2764.0,2763.5,3.6185]
[1724458779166,3.61807,2763.9,2763.3,6.06206]
[1724458779371,6.498569,2764.0,2763.4,3.61863]
[1724458779567,5.90779,2764.0,2763.5,3.61859]
[1724458779856,2.2898,2764.0,2763.5,3.61859]
[1724458780158,5.90781,2764.0,2763.4,3.61871]
[1724458780383,9.52585,2764.0,2763.4,3.61871]
[1724458780547,0.33783381,2763.9,2763.4,3.61871]
[1724458780730,3.61774,2764.2,2763.5,3.61856]
[1724458780918,0.33784105,2764.1,2763.6,3.61836]
[1724458781119,3.61774,2764.2,2763.6,3.61836]
[1724458781319,0.33779687,2764.1,2763.6,3.61836]
[1724458781653,2.331,2764.3,2763.9,3.61804]
[1724458781816,0.33780338,2764.2,2763.9,3.61804]
[1724458782021,5.94821,2764.6,2763.9,3.61804]
[1724458782233,0.87832493,2764.5,2764.0,3.61784]
[1724458782530,0.33781728,2764.4,2764.0,3.61784]
[1724458782733,0.33781728,2764.3,2763.9,3.61804]
[1724458782958,3.61729,2764.5,2763.9,3.61804]
[1724458783266,0.33781896,2764.4,2763.9,3.61804]
[1724458783551,0.33781896,2764.3,2763.9,3.61804]
[1724458783869,4.57384,2764.5,2763.9,3.61804]
[1724458784212,0.33779685,2764.4,2763.9,3.61804]
[1724458784454,0.33779685,2764.3,2763.9,3.61804]
[1724458784612,4.57384,2764.5,2763.9,3.61804]
[1724458784812,5.0074182,2764.4,2763.9,3.61804]
[1724458785112,0.3377832,2764.3,2763.9,3.61804]
[1724458785499,0.33777792,2764.2,2763.8,5.95429]
[1724458785685,4.669635,2764.4,2763.8,5.95429]
[1724458785871,0.33777763,2764.3,2763.8,2.3361]
[1724458786070,0.33777763,2764.2,2763.8,2.3361]
[1724458786263,4.48009326,2764.3,2763.8,2.3361]
[1724458786470,2.331,2764.1,2763.5,5.95464]
[1724458786993,0.33776597,2764.0,2763.5,5.95464]
[1724458787178,2.331,2764.1,2763.5,9.57316]
[1724458787382,0.33776401,2764.0,2763.5,5.95462]
[1724458787710,6.62998933,2764.1,2763.5,5.95462]
[1724458787852,3.01211933,2764.1,2763.5,9.57313]
[1724458788057,0.3377595,2764.0,2763.5,9.57313]
[1724458788257,3.6177,2764.2,2763.5,9.57313]
[1724458788496,7.23548,2764.2,2763.5,5.95461]
[1724458788958,0.75401368,2763.9,2763.5,9.57309]
[1724458789159,0.75401368,2763.8,2763.5,5.95458]
[1724458789400,0.75401368,2763.9,2763.6,1.339458]
[1724458790360,0.75401368,2763.9,2763.7,3.61833]
[1724458790579,0.75401368,2763.8,2763.7,3.61833]
[1724458790905,0.75401368,2763.9,2763.7,3.61833]
[1724458791486,0.75401368,2763.9,2763.8,3.6182]
[1724458791848,0.75401368,2764.0,2763.9,3.61807]
[1724458791999,0.75401368,2764.0,2763.9,9.57224]
[1724458792498,0.75401368,2764.1,2764.0,3.61794]
[1724458793106,0.75401368,2764.1,2763.9,5.95417]
[1724458798459,0.75401368,2764.1,2764.0,3.61794]
[1724458798591,0.75401368,2764.3,2764.0,3.61794]
[1724458798830,0.75401368,2764.3,2764.2,3.61768]
[1724458799034,0.75401368,2764.4,2764.2,3.61768]
[1724458799294,0.75401368,2764.4,2764.3,2.3752]
[1724458799527,1.13102052,2764.5,2764.3,2.3752]
[1724458799528,0.75401368,2764.5,2764.4,3.61742]
[1724458800023,1.13102052,2764.6,2764.4,3.61742]
[1724458800024,0.75401368,2764.6,2764.4,3.61742]
[1724458800229,0.75401368,2764.6,2764.5,3.61729]
[1724458801069,1.8850342,2764.6,2764.5,3.61729]
[1724458801250,1.13102052,2764.6,2764.5,8.25623532]
[1724458801454,0.75396454,2765.0,2764.8,2.3752]
[1724458801651,0.75396454,2765.0,2764.8,5.99198]
[1724458801963,0.75396454,2765.0,2764.4,3.61739]
[1724458801964,1.13102052,2764.9,2764.4,3.61739]
[1724458802135,0.75382806,2764.7,2764.2,7.44]
[1724458802340,0.75382806,2764.5,2763.9,5.99316]
[1724458802889,0.75382806,2764.5,2764.4,3.61742]
[1724458803241,0.75382806,2764.6,2764.4,3.61742]
[1724458803443,0.75382806,2764.5,2764.3,3.61751]
[1724458803684,0.75382806,2764.5,2764.4,3.61742]
[1724458804048,0.75382806,2764.6,2764.4,3.61742]
[1724458804392,1.13074209,2764.7,2764.4,3.61742]
[1724458804393,0.75382806,2764.7,2764.5,3.61729]
[1724458804939,0.75382806,2764.7,2764.6,3.61715]
[1724458805143,0.75382806,2764.8,2764.6,3.61715]
[1724458805393,0.75382806,2764.8,2764.7,3.61702]
[1724458805840,1.13074209,2765.0,2764.8,3.61689]
[1724458806048,0.75373683,2764.9,2764.8,3.61689]
[1724458806242,0.75364335,2765.0,2764.9,3.61676]
[1724458806647,0.75364335,2765.1,2765.0,3.61663]
[1724458806878,1.13074209,2765.3,2765.0,3.61663]
[1724458806879,0.75364335,2765.2,2765.1,3.6165]
[1724458807082,0.75364335,2765.3,2765.2,3.61637]
[1724458807391,0.75364335,2765.5,2765.3,3.61619]
[1724458807604,0.75364335,2765.5,2765.4,3.61611]
[1724458807808,0.75364335,2765.6,2765.4,3.61611]
[1724458807941,0.75364335,2765.6,2765.5,3.61598]
[1724458808147,0.00155064,2765.7,2765.6,3.61585]
[1724458808956,0.00155064,2765.7,2765.6,7.30400888]
[1724458809319,0.00155064,2765.7,2765.6,10.40960977]
[1724458810308,0.00155064,2765.7,2765.6,10.33730089]
[1724458810456,0.00155064,2765.7,2765.6,13.88730089]
[1724458810901,0.00155064,2765.7,2765.6,17.50315089]
[1724458812915,0.00155064,2765.7,2765.6,21.11900089]
[1724458814220,4.36732335,2767.3,2765.8,2.3752]
[1724458814221,2.3814,2767.3,2765.8,2.3752]
[1724458814361,2.3814,2767.3,2766.9,3.61403]
[1724458814854,3.6134,2767.5,2766.9,3.61403]
[1724458815054,2.3814,2767.6,2767.0,3.61399]
[1724458815265,3.61312,2767.7,2767.1,7.22759]
[1724458815565,2.3814,2767.9,2767.4,3.61345]
[1724458815804,2.3814,2767.9,2767.3,3.61353]
[1724458815805,2.3814,2767.9,2767.5,3.61336]
[1724458816127,2.3814,2767.9,2767.3,7.22707]
[1724458816323,7.22529,2768.1,2767.4,3.61345]
[1724458816545,0.962609,2768.0,2767.5,3.61335]
[1724458817742,0.962609,2768.0,2767.6,3.61321]
[1724458817947,2.4008,2768.2,2767.6,3.61321]
[1724458818160,2.4008,2768.6,2767.9,3.61279]
[1724458818319,3.61215,2768.5,2767.8,3.61297]
[1724458818642,3.61222,2768.4,2767.8,3.61297]
[1724458819202,3.61215,2768.5,2767.8,3.61288]
[1724458819418,0.361215,2768.5,2767.8,3.61288]
[1724458819632,0.361215,2768.5,2768.0,3.61271]
[1724458820800,3.61158,2768.9,2768.2,3.61244]
[1724458821004,3.61158,2768.9,2768.2,3.68468091]
[1724458821243,0.03643533,2768.8,2768.4,3.61219]
[1724458821746,6.01214,2769.1,2768.4,3.61219]
[1724458822047,6.01214,2769.1,2768.3,3.61222]
[1724458822232,6.01214,2769.1,2768.1,9.8427]
[1724458822233,0.962317,2769.1,2768.5,3.61204]
[1724458822436,3.61118,2769.2,2768.5,3.61204]
[1724458822620,3.61132,2769.1,2768.5,3.61204]
[1724458823107,3.61143,2769.0,2768.3,3.6123]
[1724458823323,3.61167,2768.8,2768.1,13.45524]
[1724458823646,3.61154,2768.9,2768.1,13.45524]
[1724458823846,3.61154,2768.9,2768.1,11.05254]
[1724458824020,6.01259,2768.8,2768.1,11.05254]
[1724458824422,3.61216,2768.5,2767.8,2.4027]
[1724458824622,3.61216,2768.5,2767.9,3.61281]
[1724458824623,0.361216,2768.4,2767.9,3.61281]
[1724458825946,0.361216,2768.4,2767.9,7.22554]
[1724458826150,0.361216,2768.4,2767.9,3.61273]
[1724458826324,0.361216,2768.4,2768.0,3.61271]
[1724458826853,3.61255,2768.2,2767.3,3.61361]
[1724458827038,3.61259,2768.1,2767.4,3.61344]
[1724458827410,3.6128,2768.0,2767.3,3.61353]
[1724458827710,0.36128,2767.9,2767.5,3.61335]
[1724458827930,3.61259,2768.1,2767.5,3.61335]
[1724458829025,3.61298,2767.8,2767.1,3.61383]
[1724458829231,3.61298,2767.8,2766.8,9.8427]
[1724458829425,3.61298,2767.8,2767.1,3.61388]
[1724458829426,3.61311,2767.7,2767.1,3.61388]
[1724458829729,3.61311,2767.7,2766.5,4.04314985]
[1724458829730,2.4008,2767.7,2766.7,3.61435]
[1724458829926,2.4008,2767.7,2766.5,2.4027]
[1724458829927,3.85334,2767.6,2766.5,2.4027]
[1724458830131,3.85334,2767.6,2766.9,3.6141]
[1724458830656,0.24008,2767.6,2766.7,3.61438]
[1724458831238,0.24008,2767.6,2766.5,3.6146]
[1724458831438,0.24008,2767.6,2766.3,3.6149]
[1724458831439,3.61399,2767.1,2766.2,2.4027]
[1724458831641,3.61399,2767.1,2766.2,3.61496]
[1724458831642,3.61425,2766.9,2766.2,3.61496]
[1724458831858,0.601479,2767.0,2766.4,3.61478]
[1724458832023,0.0746226,2766.8,2766.4,3.61478]
[1724458832228,0.601479,2767.0,2766.4,3.61478]
[1724458832656,0.07629086,2766.9,2766.5,3.61458]
[1724458832860,0.07629086,2766.9,2766.6,3.61453]
[1724458833031,6.01456,2767.2,2766.6,3.61453]
[1724458833246,0.07629728,2767.1,2766.6,3.61453]
[1724458834274,6.01419,2767.5,2766.8,3.61418]
[1724458834511,0.625414,2767.4,2766.8,3.61418]
[1724458834776,0.69923416,2767.4,2766.8,3.61418]
[1724458835572,0.07382016,2767.4,2766.8,3.61418]
[1724458835753,0.07382016,2767.4,2766.9,3.61414]
[1724458835947,0.07382016,2767.4,2766.5,9.8427]
[1724458835948,0.07382016,2767.4,2767.2,3.61371]
[1724458836152,5.9912,2767.8,2767.1,3.61379]
[1724458836344,0.07379973,2767.3,2767.2,3.61376]
[1724458836555,5.9912,2767.8,2767.2,3.61376]
[1724458836755,0.07379973,2767.3,2767.2,3.61376]
[1724458837074,5.99067,2768.2,2767.5,3.61326]
[1724458837651,9.60324,2768.2,2767.5,3.61326]
[1724458837844,2.3782,2768.2,2767.5,3.61326]
[1724458838158,2.3782,2768.2,2767.6,0.07225482]
[1724458838478,5.99065,2768.2,2767.5,3.61326]
[1724458838650,6.950938,2768.2,2767.5,3.61326]
[1724458839246,3.6126,2768.1,2767.5,3.61326]
[1724458839763,3.338488,2768.2,2767.6,3.61321]
[1724458839943,0.07452753,2768.0,2767.6,3.61321]
[1724458840154,0.07457827,2768.1,2767.5,3.61326]
[1724458840353,0.07452443,2767.9,2767.5,3.61326]
[1724458840554,0.07457517,2768.0,2767.5,3.61326]
[1724458840856,0.07452443,2767.9,2767.5,7.22653]
[1724458841039,6.950948,2768.2,2767.5,7.22653]
[1724458841242,6.950948,2768.2,2767.5,3.61326]
[1724458841479,0.0746259,2768.1,2767.6,3.61322]
[1724458841974,4.38978329,2768.1,2767.5,3.61326]
[1724458842175,4.38978329,2768.1,2767.5,7.22652]
[1724458842366,4.38978329,2768.1,2767.5,3.61326]
[1724458843638,4.38978329,2768.1,2767.5,7.22653]
[1724458843862,0.0746259,2768.1,2767.5,3.61326]
[1724458844053,0.960288,2768.2,2767.5,3.61326]
[1724458844269,0.07459559,2768.1,2767.7,3.61302]
[1724458844468,3.68725559,2768.1,2767.5,3.61326]
[1724458844670,0.82600036,2768.0,2767.5,3.61326]
[1724458844872,0.07448978,2767.9,2767.5,3.61326]
[1724458845070,4.43882036,2768.0,2767.3,3.61359]
[1724458845269,3.61292,2767.9,2767.3,3.6135]
[1724458845472,3.68769135,2767.9,2767.4,3.61346]
[1724458845669,4.50032652,2767.9,2767.4,3.61346]
[1724458845978,4.50032652,2767.9,2767.4,3.61349]
[1724458846387,0.81263517,2767.9,2767.5,3.61336]
[1724458846541,7.22479,2768.3,2767.5,3.61329]
[1724458846883,0.07492356,2768.2,2767.7,3.61302]
[1724458847091,3.61228,2768.4,2767.7,7.22605]
[1724458847293,0.07496563,2768.3,2767.7,7.22605]
[1724458847592,0.07496563,2768.3,2767.8,3.61295]
[1724458847797,0.07496563,2768.3,2767.9,3.61284]
[1724458847995,2.3782,2768.5,2768.0,3.61271]
[1724458848203,0.0749019,2768.2,2768.0,3.61271]
[1724458848499,3.61184,2768.7,2768.1,7.22507]
[1724458848803,3.61184,2768.7,2768.1,3.61249]
[1724458849149,3.61184,2768.7,2768.2,3.61245]
[1724458849411,5.98989,2768.8,2768.2,3.6124]
[1724458849545,6.950038,2768.8,2768.2,3.6124]
[1724458849945,6.950038,2768.8,2768.1,3.61249]
[1724458850187,6.950038,2768.8,2768.1,7.22497]
[1724458850388,3.61181,2768.7,2768.1,3.61248]
[1724458850887,0.07529531,2768.6,2768.1,3.61248]
[1724458851794,0.07529531,2768.6,2768.3,3.61228]
[1724458852100,2.3782,2768.8,2768.3,3.61228]
[1724458852101,0.07526191,2768.5,2768.3,3.61228]
[1724458852304,3.61168,2768.8,2768.1,7.22495]
[1724458852446,0.07536334,2768.7,2768.1,3.61247]
[1724458852648,3.61168,2768.8,2768.1,3.61247]
[1724458852849,2.3782,2768.6,2768.0,3.6127]
[1724458853154,3.61222,2768.4,2767.9,11.05278]
[1724458853386,3.61222,2768.4,2767.9,7.44]
[1724458853567,0.07538561,2768.3,2767.9,7.44]
[1724458853767,3.68771561,2768.3,2767.9,7.44]
[1724458853972,4.41770917,2768.3,2767.9,7.44]
[1724458854394,0.80537917,2768.3,2767.9,7.44]
[1724458855013,3.61245,2768.2,2767.9,7.44]
[1724458855375,0.07520189,2768.1,2767.9,7.44]
[1724458855577,0.07520189,2768.1,2767.7,3.61301]
[1724458855886,3.61245,2768.2,2767.7,3.61301]
[1724458856088,0.07520189,2768.1,2767.7,3.61301]
[1724458856385,4.40791636,2768.2,2767.7,3.61301]
[1724458856386,0.79546636,2768.2,2767.7,3.61301]
[1724458856602,3.61222,2768.4,2767.7,3.61301]
[1724458856914,3.68763336,2768.3,2767.7,3.61301]
[1724458857074,0.07530336,2768.3,2767.7,7.22603]
[1724458857416,0.07530336,2768.3,2767.8,3.61295]
[1724458858498,0.07530336,2768.3,2767.7,3.61301]
[1724458858831,0.36875234,2768.2,2767.7,3.61301]
[1724458859178,0.07505036,2768.1,2767.7,3.61301]
[1724458859677,0.07505036,2768.1,2767.8,3.61296]
[1724458861700,4.36586335,2768.4,2767.8,3.61296]
[1724458861908,3.68755183,2768.3,2767.7,3.61309]
[1724458862103,6.0878,2768.1,2767.5,7.44]
[1724458862291,0.07498663,2768.0,2767.6,3.61322]
[1724458862734,0.82862998,2768.0,2767.5,7.44]
[1724458862909,0.82862998,2768.0,2767.6,3.61322]
[1724458863831,0.62862998,2768.0,2767.6,3.61322]
[1724458864032,0.07238437,2767.9,2767.6,3.61322]
[1724458868704,0.07238437,2767.9,2767.4,3.6134]
[1724458868898,0.86433901,2767.9,2767.4,3.6134]
[1724458869129,1.9950811,2767.9,2767.2,23.51369]
[1724458869327,5.6080211,2767.9,2767.2,11.05369]
[1724458869530,5.53563673,2767.9,2767.2,11.05369]
[1724458869842,0.07219939,2767.8,2767.2,11.05369]
[1724458870398,1.20294148,2767.8,2767.3,3.61362]
[1724458870641,1.20294148,2767.8,2767.4,3.61337]
[1724458870804,0.07219939,2767.8,2767.4,3.61337]
[1724458871001,0.07219939,2767.8,2767.7,3.6131]
[1724458871230,1.13074209,2768.2,2767.8,3.61289]
[1724458871628,1.13074209,2768.2,2767.9,3.61284]
[1724458871826,1.13074209,2768.3,2767.9,3.61284]
[1724458872341,1.13074209,2768.2,2767.9,3.61284]
[1724458872898,1.13074209,2768.2,2767.7,3.6131]
[1724458872899,1.13074209,2768.2,2767.7,3.613]
[1724458873137,0.07226498,2768.1,2767.8,3.61296]
[1724458874012,0.82569725,2768.1,2767.9,3.61282]
[1724458875102,0.07226498,2768.1,2767.9,3.61282]
[1724458875940,0.82569725,2768.1,2767.9,3.61282]
[1724458876144,0.07226498,2768.1,2767.9,3.61282]
[1724458876644,0.07226498,2768.1,2767.8,3.61296]
[1724458876645,0.07226498,2768.1,2767.8,3.61289]
[1724458876846,0.07226498,2768.1,2767.6,3.61315]
[1724458876847,0.82569725,2768.1,2767.6,3.61315]
[1724458877162,0.82569725,2768.1,2767.7,3.61299]
[1724458877359,3.13843227,2768.0,2767.6,3.61315]
[1724458877571,3.13843227,2768.0,2767.4,3.61344]
[1724458877572,0.75343227,2767.8,2767.4,3.61344]
[1724458877770,0.75343227,2767.8,2767.0,3.61397]
[1724458877771,3.61323,2767.6,2767.0,3.61397]
[1724458877972,4.36666227,2767.6,2767.0,3.61397]
[1724458878185,0.07216406,2767.5,2766.9,2.3613]
[1724458878367,0.07216406,2767.5,2767.2,3.61364]
[1724458878686,0.82559633,2767.5,2767.0,3.61397]
[1724458878885,0.75343227,2767.4,2767.0,3.61397]
[1724458879185,0.069456,2767.3,2767.0,3.61397]
[1724458879387,0.82288827,2767.3,2767.0,3.61397]
[1724458879585,0.82288827,2767.3,2766.8,3.61424]
[1724458879772,0.82288827,2767.3,2766.9,3.61408]
[1724458879947,0.82288827,2767.3,2766.9,3.61413]
[1724458879948,0.75343227,2767.2,2766.9,3.61413]
[1724458880347,0.82263947,2767.1,2766.9,3.61413]
[1724458880683,0.82263947,2767.1,2767.0,3.61402]
[1724458882589,0.82263947,2767.1,2766.8,3.61424]
[1724458882757,0.75458863,2767.0,2766.8,3.61424]
[1724458883086,0.82379583,2767.1,2766.9,3.61414]
[1724458883285,0.75458863,2767.1,2766.9,3.61414]
[1724458883993,0.06907845,2767.0,2766.9,3.61414]
[1724458887105,0.75458863,2767.2,2766.9,3.61414]
[1724458887314,0.06912923,2767.1,2766.9,7.2282]
[1724458887514,0.06912923,2767.1,2766.9,4.33688]
[1724458887921,0.06912923,2767.1,2767.0,3.61402]
[1724458888130,0.75458863,2767.3,2767.0,3.61402]
[1724458888280,0.06911502,2767.2,2767.0,3.61402]
[1724458888627,0.75458863,2767.3,2766.9,7.22807]
[1724458888827,0.06906425,2767.1,2767.0,3.61402]
[1724458889132,0.06871341,2767.1,2767.0,3.61402]
[1724458889270,0.75458863,2767.3,2767.0,3.61402]
[1724458889475,0.06876419,2767.2,2767.0,3.61402]
[1724458889675,0.75458863,2767.3,2767.0,3.61402]
[1724458889874,0.06876419,2767.2,2767.0,3.61402]
[1724458890092,0.75458863,2767.3,2767.0,3.61402]
[1724458890320,0.06876419,2767.2,2767.0,3.61402]
[1724458890497,0.75458863,2767.3,2767.0,3.61402]
[1724458890696,0.06876419,2767.2,2767.0,3.61402]
[1724458891113,0.75458863,2767.3,2767.0,3.61402]
[1724458891286,0.06871775,2767.1,2767.0,3.61402]
[1724458891601,0.06870908,2767.1,2767.0,3.61402]
[1724458891943,0.75458863,2767.3,2767.0,3.61402]
[1724458892299,0.06875986,2767.2,2767.0,3.61402]
[1724458892664,0.75458863,2767.3,2767.0,3.61402]
[1724458893157,0.06875986,2767.2,2767.0,3.61402]
[1724458893682,0.75458863,2767.3,2766.9,7.22806]
[1724458893853,0.75458863,2767.3,2766.9,3.61403]
[1724458893854,0.06870908,2767.1,2766.9,3.61403]
[1724458894186,0.75458863,2767.3,2767.0,3.61392]
[1724458895256,1.09392444,2767.3,2766.5,7.44]
[1724458895459,6.23330745,2766.8,2765.6,7.5634393]
[1724458895702,3.20278863,2766.4,2765.6,3.61582]
[1724458896024,3.20278863,2766.4,2765.9,3.61536]
[1724458896297,4.33353072,2766.4,2765.9,3.61536]
[1724458896597,4.33353072,2766.4,2765.7,4.338854]
[1724458896598,3.20278863,2766.4,2766.0,3.61531]
[1724458896906,0.75458863,2766.4,2766.1,3.61519]
[1724458897102,1.13074209,2766.5,2766.2,4.04887247]
[1724458897405,0.75458863,2766.9,2766.4,3.61467]
[1724458897701,0.75458863,2766.8,2766.4,3.61467]
[1724458898082,0.75458863,2766.8,2766.2,3.976559]
[1724458898295,0.75458863,2766.8,2766.3,3.61492]
[1724458899396,0.06337194,2766.7,2766.3,4.6120109]
[1724458899805,0.75458863,2766.8,2766.3,4.6120109]
[1724458899965,0.06332114,2766.6,2766.4,3.61478]
[1724458900299,0.06327035,2766.5,2766.4,3.61478]
[1724458900461,0.75458863,2766.9,2766.3,4.6120109]
[1724458900663,0.75458863,2766.8,2766.3,4.6120109]
[1724458900904,0.75458863,2766.6,2765.8,6.61557]
[1724458901107,3.20278863,2766.7,2766.1,3.61517]
[1724458901311,0.06327905,2766.5,2766.1,3.61517]
[1724458901512,0.06332984,2766.6,2766.1,3.61517]
[1724458901713,0.06322824,2766.4,2766.1,3.61517]
[1724458901925,0.06327905,2766.5,2766.1,4.338232]
[1724458902091,0.06317744,2766.3,2766.1,4.338232]
[1724458902423,0.75458863,2766.9,2766.3,3.61484]
[1724458902921,0.75458863,2766.8,2766.3,3.61484]
[1724458903134,0.81796359,2766.8,2766.4,3.6148]
[1724458903427,0.81796359,2766.8,2766.2,5.99428]
[1724458903634,0.81796359,2766.8,2766.2,7.7715292]
[1724458904541,4.43224359,2766.8,2766.2,5.3922292]
[1724458904844,4.43224359,2766.8,2766.2,3.61498]
[1724458905484,0.81796359,2766.8,2766.2,3.61498]
[1724458905684,0.06337496,2766.8,2766.2,3.61498]
[1724458905887,0.81796359,2766.8,2766.3,3.61493]
[1724458906656,0.06337496,2766.8,2766.3,3.61493]
[1724458907007,0.81796359,2766.8,2766.3,3.61493]
[1724458907819,0.81796359,2766.8,2766.2,3.61498]
[1724458908020,0.81796359,2766.8,2766.2,8.696985]
[1724458908224,0.81796359,2766.8,2766.2,5.082005]
[1724458909047,0.06337496,2766.8,2766.2,5.082005]
[1724458909226,0.06337496,2766.8,2766.7,7.22882]
[1724458909716,0.75458863,2767.3,2766.7,3.61441]
[1724458910137,0.06043552,2767.2,2766.7,3.61441]
[1724458910337,0.06043552,2767.2,2766.7,5.081312]
[1724458910565,3.61411,2767.0,2766.5,7.44]
[1724458911076,3.61429,2766.8,2766.5,7.44]
[1724458911371,0.06018161,2766.7,2766.5,7.44]
[1724458911664,0.06018161,2766.7,2766.2,4.467025]
[1724458911665,2.50838161,2766.7,2766.2,1.467025]
[1724458911870,2.4482,2766.7,2766.1,11.0551]
[1724458912051,0.06022635,2766.6,2766.1,12.760078]
[1724458912258,2.4482,2766.7,2766.1,16.375178]
[1724458912454,0.06017555,2766.5,2766.2,3.61506]
[1724458912657,0.06022635,2766.6,2766.2,3.61506]
[1724458912886,0.06012475,2766.4,2766.2,3.61506]
[1724458913037,2.4482,2766.7,2766.3,3.61493]
[1724458913371,3.20278863,2766.9,2766.4,3.6148]
[1724458913735,0.06025413,2766.8,2766.4,3.6148]
[1724458915771,4.42913276,2766.8,2766.2,5.4903938]
[1724458916078,3.61462,2766.6,2766.1,7.44]
[1724458916235,3.61475,2766.5,2765.9,3.61535]
[1724458916578,3.61525,2766.1,2765.8,7.44]
[1724458916875,2.4804,2766.3,2765.8,7.44]
[1724458916876,6.85001863,2766.3,2765.8,7.44]
[1724458917079,0.05985638,2766.0,2765.8,7.44]
[1724458917235,10.46506863,2766.3,2765.8,7.44]
[1724458917733,0.05982337,2766.2,2765.8,7.44]
[1724458917935,3.23498863,2766.3,2765.8,10.529583]
[1724458918174,5.12275736,2766.5,2765.8,10.529583]
[1724458918175,0.05982337,2766.2,2766.1,3.61516]
[1724458918389,0.05982337,2766.2,2766.1,7.23035]
[1724458918557,0.75458863,2766.7,2766.3,3.61486]
[1724458918886,0.05778608,2766.6,2766.3,3.61485]
[1724458919086,0.05778608,2766.6,2766.4,3.976215]
[1724458919296,0.05778608,2766.6,2766.4,0.361485]
[1724458919471,2.25625206,2767.4,2766.4,0.361485]
[1724458919472,0.75458863,2767.2,2766.9,3.61411]
[1724458919800,0.75458863,2767.4,2767.2,3.61365]
[1724458919955,0.75458863,2767.5,2767.2,3.61365]
[1724458920337,0.75458863,2767.5,2767.2,4.336412]
[1724458920588,0.75458863,2767.5,2767.2,0.722762]
[1724458920748,0.75458863,2767.5,2767.0,7.22788]
[1724458920955,0.75458863,2767.5,2767.0,3.61392]
[1724458921232,0.04519445,2767.4,2767.1,3.61388]
[1724458921553,0.04519445,2767.4,2767.2,3.61375]
[1724458921958,0.61159793,2767.4,2767.2,3.61366]
[1724458922194,1.36618656,2767.4,2767.0,3.61393]
[1724458922396,1.36618656,2767.4,2767.0,4.208283]
[1724458922604,1.36618656,2767.4,2766.8,3.61425]
[1724458922605,0.75458863,2767.3,2766.8,3.61425]
[1724458922908,0.75458863,2767.2,2766.6,3.61444]
[1724458923199,0.75458863,2767.0,2766.6,3.61444]
[1724458923350,0.75458863,2766.9,2766.4,3.976235]
[1724458923551,0.045382,2766.8,2766.4,3.976235]
[1724458923785,0.045382,2766.8,2766.5,0.3976235]
[1724458923953,0.045382,2766.8,2766.6,3.61454]
[1724458924363,0.79997063,2766.8,2766.4,3.61475]
[1724458924594,0.75458863,2766.7,2766.4,3.61475]
[1724458924997,0.04514976,2766.6,2766.4,3.61475]
[1724458925900,0.75458863,2766.5,2766.2,7.44]
[1724458926112,0.79973839,2766.6,2766.2,12.522008]
[1724458926270,0.0449175,2766.4,2766.2,12.522008]
[1724458926458,0.75458863,2766.6,2766.2,12.522008]
[1724458926661,0.04481018,2766.3,2766.2,11.05497]
[1724458926999,0.04484056,2766.3,2766.2,11.05497]
[1724458927306,0.75458863,2766.6,2766.2,11.05497]
[1724458927600,0.75458863,2766.5,2766.2,11.05497]
[1724458927756,0.79953079,2766.5,2766.2,11.05497]
[1724458928258,0.04494216,2766.5,2766.2,11.05497]
[1724458928472,0.79953079,2766.5,2766.2,11.05497]
[1724458928732,0.79953079,2766.5,2766.2,14.66993]
[1724458928999,0.79953079,2766.5,2766.3,3.61491]
[1724458929000,0.04494216,2766.5,2766.3,3.61491]
[1724458929407,0.04494216,2766.5,2766.4,3.6148]
[1724458929583,0.04494216,2766.5,2766.4,7.2296]
[1724458929794,0.04494216,2766.5,2766.4,8.19446]
[1724458929953,0.75458863,2766.7,2766.6,3.61454]
[1724458930149,0.79785186,2766.7,2766.6,3.61454]
[1724458931494,0.04326323,2766.7,2766.6,7.77908]
[1724458931658,0.04326323,2766.7,2766.6,3.61454]
[1724458931857,0.75458863,2766.9,2766.6,4.433956]
[1724458932177,0.75458863,2766.9,2766.6,4.433856]
[1724458932515,0.04195027,2766.8,2766.6,8.048306]
[1724458932677,0.04195027,2766.8,2766.7,3.61441]
[1724458932862,0.04195027,2766.8,2766.6,4.433856]
[1724458933063,0.04195027,2766.8,2766.7,3.61441]
[1724458933610,0.04195027,2766.8,2766.7,4.4192366]
[1724458933981,0.75458863,2766.9,2766.8,3.61428]
[1724458934160,0.04200105,2766.9,2766.8,3.61428]
[1724458934657,0.04200105,2766.9,2766.7,0.8048266]
[1724458934898,0.75458863,2766.8,2766.6,7.2289]
[1724458935114,0.75458863,2766.8,2766.6,3.61444]
[1724458935307,0.04189948,2766.7,2766.6,3.61444]
[1724458935606,0.75458863,2766.8,2766.6,3.61444]
[1724458935766,0.75458863,2766.8,2766.5,3.61465]
[1724458935767,0.04189948,2766.7,2766.5,3.61465]
[1724458935967,0.75458863,2766.7,2766.5,3.61465]
[1724458936317,0.04184869,2766.6,2766.5,3.61465]
[1724458936611,0.79643732,2766.6,2766.4,3.61478]
[1724458936831,0.79643732,2766.6,2765.9,11.05537]
[1724458936832,1.13074209,2766.5,2765.9,11.05537]
[1724458937029,0.75426957,2766.2,2765.9,11.05536]
[1724458937366,0.75426957,2766.2,2766.0,3.61521]
[1724458937617,0.75426957,2766.2,2765.9,3.61536]
[1724458937820,0.75426957,2766.2,2766.1,3.61519]
[1724458938118,1.13140436,2766.4,2766.3,3.61493]
[1724458938279,1.54987605,2766.6,2766.3,3.61493]
[1724458938488,0.75447872,2766.5,2766.4,7.2296]
[1724458938720,0.75447872,2766.5,2766.4,7.95256]